Body,Body Name,Transaction No,Invoice Ref.,Vendor Name,Expense,Expense Type,Payment Date,Amount
http://statistics.data.gov.uk/id/local-authority-district/23UB,Cheltenham Borough Council,14020249,94405503,AA Media Limited,R4013-CUL107,Exhibition Supplies,18/10/2013,935.00 
http://statistics.data.gov.uk/id/local-authority-district/23UB,Cheltenham Borough Council,14020013,2010183,Activist Group Limited (Formerly Eightytwenty Insight LG),R4401-CUL107,Services - Fees and Charges,11/10/2013,918.75 
http://statistics.data.gov.uk/id/local-authority-district/23UB,Cheltenham Borough Council,14019399,24528697-15,ADT Fire & Security plc,R2705-CUL117,Security Systems,08/10/2013,530.85 
http://statistics.data.gov.uk/id/local-authority-district/23UB,Cheltenham Borough Council,14019952,24834307-15,ADT Fire & Security plc,R2004-CUL117,R & M of Build Programmed,11/10/2013,"3,300.60 "
http://statistics.data.gov.uk/id/local-authority-district/23UB,Cheltenham Borough Council,14020248,28169015A,AECOM Professional Services LLP,C1005-CAP121,Surveyors Fees,18/10/2013,"5,500.00 "
http://statistics.data.gov.uk/id/local-authority-district/23UB,Cheltenham Borough Council,14020248,28169015A,AECOM Professional Services LLP,C6002-CAP121,Fees - Agency,18/10/2013,"1,900.00 "
http://statistics.data.gov.uk/id/local-authority-district/23UB,Cheltenham Borough Council,14020248,28169015A,AECOM Professional Services LLP,C1106-CAP121,Engineering Works,18/10/2013,"1,200.00 "
http://statistics.data.gov.uk/id/local-authority-district/23UB,Cheltenham Borough Council,14019664,28171976,AECOM Professional Services LLP,C1005-CAP121,Surveyors Fees,04/10/2013,"5,500.00 "
http://statistics.data.gov.uk/id/local-authority-district/23UB,Cheltenham Borough Council,14019664,28171976,AECOM Professional Services LLP,C6002-CAP121,Fees - Agency,04/10/2013,"3,100.00 "
http://statistics.data.gov.uk/id/local-authority-district/23UB,Cheltenham Borough Council,14020088,28171976A,AECOM Professional Services LLP,R4401-CUL107,Services - Fees and Charges,18/10/2013,"8,600.00 "
http://statistics.data.gov.uk/id/local-authority-district/23UB,Cheltenham Borough Council,14020207,64655,All Signs Visual Communications Limited,R4000-CUL107,Equipment Purchase,18/10/2013,"9,776.00 "
http://statistics.data.gov.uk/id/local-authority-district/23UB,Cheltenham Borough Council,14020206,64656,All Signs Visual Communications Limited,R4000-CUL107,Equipment Purchase,18/10/2013,"5,987.00 "
http://statistics.data.gov.uk/id/local-authority-district/23UB,Cheltenham Borough Council,14019693,58130,Alpha Colour Printers Limited,R4013-CUL107,Exhibition Supplies,18/10/2013,660.00 
http://statistics.data.gov.uk/id/local-authority-district/23UB,Cheltenham Borough Council,14020065,58157,Alpha Colour Printers Limited,R4013-CUL107,Exhibition Supplies,11/10/2013,582.00 
http://statistics.data.gov.uk/id/local-authority-district/23UB,Cheltenham Borough Council,14019915,58224,Alpha Colour Printers Limited,R4300-HBA001,Printing - Services,04/10/2013,"1,082.00 "
http://statistics.data.gov.uk/id/local-authority-district/23UB,Cheltenham Borough Council,14020562,58351,Alpha Colour Printers Limited,R4308-SUP012,Stationery,25/10/2013,522.00 
http://statistics.data.gov.uk/id/local-authority-district/23UB,Cheltenham Borough Council,14020011,26906,Alpha Response Print & Mail Limited,R4300-ELE001,Printing - Services,18/10/2013,"5,042.00 "
http://statistics.data.gov.uk/id/local-authority-district/23UB,Cheltenham Borough Council,14020011,26906,Alpha Response Print & Mail Limited,R4300-ELE001,Printing - Services,18/10/2013,"1,162.00 "
http://statistics.data.gov.uk/id/local-authority-district/23UB,Cheltenham Borough Council,14019627,4514233297,Amer Sports UK Limited,C4000-CAP111,Acquisition of Equipment,04/10/2013,"167,671.35 "
http://statistics.data.gov.uk/id/local-authority-district/23UB,Cheltenham Borough Council,14019812,4514290522,Amer Sports UK Limited,C4000-CAP111,Acquisition of Equipment,11/10/2013,"12,925.35 "
http://statistics.data.gov.uk/id/local-authority-district/23UB,Cheltenham Borough Council,14020162,1105,AMPM247.com Limited,C1100-CAP106,Construction,18/10/2013,"9,579.98 "
http://statistics.data.gov.uk/id/local-authority-district/23UB,Cheltenham Borough Council,14019883,827,Anderson Civil Engineering UK Limited,R5001-EMP001,TPP - Major External Contractors,04/10/2013,525.12 
http://statistics.data.gov.uk/id/local-authority-district/23UB,Cheltenham Borough Council,14019883,827,Anderson Civil Engineering UK Limited,R5001-EMP001,TPP - Major External Contractors,04/10/2013,"1,319.88 "
http://statistics.data.gov.uk/id/local-authority-district/23UB,Cheltenham Borough Council,14020034,828,Anderson Civil Engineering UK Limited,R5001-EMP001,TPP - Major External Contractors,11/10/2013,833.92 
http://statistics.data.gov.uk/id/local-authority-district/23UB,Cheltenham Borough Council,14020287,830,Anderson Civil Engineering UK Limited,R5001-FLD001,TPP - Major External Contractors,18/10/2013,875.20 
http://statistics.data.gov.uk/id/local-authority-district/23UB,Cheltenham Borough Council,14020287,830,Anderson Civil Engineering UK Limited,R5001-FLD001,TPP - Major External Contractors,18/10/2013,"2,153.80 "
http://statistics.data.gov.uk/id/local-authority-district/23UB,Cheltenham Borough Council,14020463,831,Anderson Civil Engineering UK Limited,R5001-EMP001,TPP - Major External Contractors,25/10/2013,833.92 
http://statistics.data.gov.uk/id/local-authority-district/23UB,Cheltenham Borough Council,14020481,Premium Declaration THCIS JUL-SEPT 13,AON Limited - Tenant Insurance,R9925-HRA901,Tenant Insurance Scheme Payments,25/10/2013,"6,656.69 "
http://statistics.data.gov.uk/id/local-authority-district/23UB,Cheltenham Borough Council,14020458,iv872,Art Works,R4029-CUL107,Displays,25/10/2013,680.00 
http://statistics.data.gov.uk/id/local-authority-district/23UB,Cheltenham Borough Council,14019800,11281,Artful Limited,R4317-DEV001,Non Staff Advertising,04/10/2013,"2,248.74 "
http://statistics.data.gov.uk/id/local-authority-district/23UB,Cheltenham Borough Council,14019686,14015,Artworks Design Consultants (Cheltenham) Limited,R4300-TOU002,Printing - Services,04/10/2013,"6,143.80 "
http://statistics.data.gov.uk/id/local-authority-district/23UB,Cheltenham Borough Council,14020199,MS1302244,ATG Access Ltd,R2078-ADB101,R&M of Build - external structures,18/10/2013,828.58 
http://statistics.data.gov.uk/id/local-authority-district/23UB,Cheltenham Borough Council,14020448,34632,Berforts Information Press Limited (Touchmedia),R4029-CUL107,Displays,25/10/2013,530.00 
http://statistics.data.gov.uk/id/local-authority-district/23UB,Cheltenham Borough Council,14020534,34682,Berforts Information Press Limited (Touchmedia),R4013-CUL107,Exhibition Supplies,25/10/2013,590.00 
http://statistics.data.gov.uk/id/local-authority-district/23UB,Cheltenham Borough Council,14019824,79039,Berman Guedes Stretton Architects Limited,R4401-CUL107,Services - Fees and Charges,04/10/2013,"2,000.00 "
http://statistics.data.gov.uk/id/local-authority-district/23UB,Cheltenham Borough Council,14020059,INV414121,Bottomline Technologies Europe Limited (Security Print),R4300-SUP012,Printing - Services,11/10/2013,534.00 
http://statistics.data.gov.uk/id/local-authority-district/23UB,Cheltenham Borough Council,14020256,47SI 651630,Brenntag UK Limited,R4007-REC101,Materials - Chemicals,18/10/2013,"1,078.04 "
http://statistics.data.gov.uk/id/local-authority-district/23UB,Cheltenham Borough Council,14020392,10157-13369,Bruynzeel Storage Sysstems Ltd,C1100-CAP121,Construction,25/10/2013,"19,960.60 "
http://statistics.data.gov.uk/id/local-authority-district/23UB,Cheltenham Borough Council,14015794,9931-13119,Bruynzeel Storage Sysstems Ltd,C1100-CAP121,Construction,18/10/2013,"28,144.48 "
http://statistics.data.gov.uk/id/local-authority-district/23UB,Cheltenham Borough Council,14020335,9931-13368,Bruynzeel Storage Sysstems Ltd,C1100-CAP121,Construction,18/10/2013,"7,036.52 "
http://statistics.data.gov.uk/id/local-authority-district/23UB,Cheltenham Borough Council,14020134,676,Carbrey Housing Limited,R4971-HOM001,Bed & Breakfast payments,18/10/2013,608.00 
http://statistics.data.gov.uk/id/local-authority-district/23UB,Cheltenham Borough Council,14020135,679,Carbrey Housing Limited,R4971-HOM001,Bed & Breakfast payments,18/10/2013,608.00 
http://statistics.data.gov.uk/id/local-authority-district/23UB,Cheltenham Borough Council,14020269,INV1158,CDC Technical Services Limited,R4003-CCT001,Tools & Equipment - R & M,18/10/2013,"2,100.00 "
http://statistics.data.gov.uk/id/local-authority-district/23UB,Cheltenham Borough Council,14020273,27405,CDK Castings Limited T/A Arkell & Hurcombe,R4011-CCM001,Goods For Reasle,18/10/2013,688.50 
http://statistics.data.gov.uk/id/local-authority-district/23UB,Cheltenham Borough Council,14018955,412906,Celador Radio Limited,R4014-REC101,Marketing,25/10/2013,500.00 
http://statistics.data.gov.uk/id/local-authority-district/23UB,Cheltenham Borough Council,14018954,413535,Celador Radio Limited,R4014-REC101,Marketing,25/10/2013,500.00 
http://statistics.data.gov.uk/id/local-authority-district/23UB,Cheltenham Borough Council,14019902,415595,Celador Radio Limited,R4014-SPP002,Marketing,11/10/2013,500.00 
http://statistics.data.gov.uk/id/local-authority-district/23UB,Cheltenham Borough Council,14018957,6402,Celador Radio Limited,R4014-REC101,Marketing,25/10/2013,500.00 
http://statistics.data.gov.uk/id/local-authority-district/23UB,Cheltenham Borough Council,14020333,CHELTDW/9/2013/R,Cheltenham Animal Shelter,R4401-REG003,Services - Fees and Charges,18/10/2013,"1,913.25 "
http://statistics.data.gov.uk/id/local-authority-district/23UB,Cheltenham Borough Council,14020332,DHELTDW/9/2013,Cheltenham Animal Shelter,R4401-REG003,Services - Fees and Charges,18/10/2013,698.00 
http://statistics.data.gov.uk/id/local-authority-district/23UB,Cheltenham Borough Council,14020445,25508,Cheltenham Business Forms Limited (CBF Group),R4400-PLP101,Services - Professional Fees,25/10/2013,705.00 
http://statistics.data.gov.uk/id/local-authority-district/23UB,Cheltenham Borough Council,14019875,SETTLEMENT,Cheltenham Cantilena Orchestra,R9406-HLD140,Lettings,04/10/2013,"1,229.70 "
http://statistics.data.gov.uk/id/local-authority-district/23UB,Cheltenham Borough Council,14020525,2012/38,Cheltenham West End Partnership Limited,R6280-COM001,Grants,25/10/2013,"1,902.00 "
http://statistics.data.gov.uk/id/local-authority-district/23UB,Cheltenham Borough Council,14019689,121-004186,Chiefield Limited T/A Brown Advertising And Design,R4300-CPK001,Printing - Services,04/10/2013,"1,919.70 "
http://statistics.data.gov.uk/id/local-authority-district/23UB,Cheltenham Borough Council,14020057,3086679,CIPFA Business Limited,R1650-SUP025,Training Expenses,11/10/2013,"1,395.00 "
http://statistics.data.gov.uk/id/local-authority-district/23UB,Cheltenham Borough Council,14018750,09/03/2013,"Citizens Advice Bureau (CAB Cheltenham, Cirencester & Tewkesbury)",R6280-GBD104,Grants,04/10/2013,"15,000.00 "
http://statistics.data.gov.uk/id/local-authority-district/23UB,Cheltenham Borough Council,14019796,M/RB018219,Civica UK Limited,R4534-LTC101,IT - Maint Agreements,04/10/2013,730.00 
http://statistics.data.gov.uk/id/local-authority-district/23UB,Cheltenham Borough Council,14020188,531073,Comensura Limited,R1100-ADB101,Agency Staff,18/10/2013,"1,025.76 "
http://statistics.data.gov.uk/id/local-authority-district/23UB,Cheltenham Borough Council,14020188,531073,Comensura Limited,R1100-CCM001,Agency Staff,18/10/2013,"2,529.13 "
http://statistics.data.gov.uk/id/local-authority-district/23UB,Cheltenham Borough Council,14019662,531275,Comensura Limited,R1100-CCM001,Agency Staff,04/10/2013,"1,748.16 "
http://statistics.data.gov.uk/id/local-authority-district/23UB,Cheltenham Borough Council,14020187,531488,Comensura Limited,R1100-HOM001,Agency Staff,18/10/2013,899.10 
http://statistics.data.gov.uk/id/local-authority-district/23UB,Cheltenham Borough Council,14020187,531488,Comensura Limited,R1100-ADB101,Agency Staff,18/10/2013,509.38 
http://statistics.data.gov.uk/id/local-authority-district/23UB,Cheltenham Borough Council,14020048,531685,Comensura Limited,R1100-HOM001,Agency Staff,11/10/2013,899.10 
http://statistics.data.gov.uk/id/local-authority-district/23UB,Cheltenham Borough Council,14020423,531889,Comensura Limited,R1100-HOM001,Agency Staff,25/10/2013,899.10 
http://statistics.data.gov.uk/id/local-authority-district/23UB,Cheltenham Borough Council,14020508,SIT105837,Commercial IT services Limited (IT Purchases),R4534-SUP101,IT - Maint Agreements,25/10/2013,"14,885.00 "
http://statistics.data.gov.uk/id/local-authority-district/23UB,Cheltenham Borough Council,14019705,SINV838993,Commercial Limited (Office Stationery only),R4308-ADB102,Stationery,04/10/2013,"15,168.45 "
http://statistics.data.gov.uk/id/local-authority-district/23UB,Cheltenham Borough Council,14019960,13405,Complete Climate Solutions,R2004-CUL112,R & M of Build Programmed,08/10/2013,"5,040.00 "
http://statistics.data.gov.uk/id/local-authority-district/23UB,Cheltenham Borough Council,14019960,13405,Complete Climate Solutions,R2004-CUL112,R & M of Build Programmed,08/10/2013,"22,031.00 "
http://statistics.data.gov.uk/id/local-authority-district/23UB,Cheltenham Borough Council,14019652,2864,Cornerstone Learning Limited,R1652-SUP020,Training Fees (External),18/10/2013,"2,300.00 "
http://statistics.data.gov.uk/id/local-authority-district/23UB,Cheltenham Borough Council,14020165,105515,Corpstar Investments Limited T/A Logotech Systems,R4400-COR006,Services - Professional Fees,18/10/2013,"1,000.00 "
http://statistics.data.gov.uk/id/local-authority-district/23UB,Cheltenham Borough Council,14019691,C23493,Cotswold Drain Service Limited,R5001-FLD001,TPP - Major External Contractors,18/10/2013,"1,220.00 "
http://statistics.data.gov.uk/id/local-authority-district/23UB,Cheltenham Borough Council,14019990,1525,County Community Projects (CCP),R6280-GBD103,Grants,08/10/2013,"54,092.83 "
http://statistics.data.gov.uk/id/local-authority-district/23UB,Cheltenham Borough Council,14020110,1539,County Community Projects (CCP),R6280-HOM001,Grants,18/10/2013,"3,252.12 "
http://statistics.data.gov.uk/id/local-authority-district/23UB,Cheltenham Borough Council,14020109,1541,County Community Projects (CCP),R6280-PSH001,Grants,18/10/2013,"1,117.13 "
http://statistics.data.gov.uk/id/local-authority-district/23UB,Cheltenham Borough Council,14020264,340040-000260,Crown Fine Art Limited,C1006-CAP121,Removal Costs,18/10/2013,"34,280.00 "
http://statistics.data.gov.uk/id/local-authority-district/23UB,Cheltenham Borough Council,14019810,953835,Crystal Radio Systems Limited,R2705-CUL107,Security Systems,04/10/2013,"1,391.00 "
http://statistics.data.gov.uk/id/local-authority-district/23UB,Cheltenham Borough Council,14020356,3790,Cuff Security Services Limited,R4429-CUL110,Services - other fees,25/10/2013,825.00 
http://statistics.data.gov.uk/id/local-authority-district/23UB,Cheltenham Borough Council,14019882,1316,D A Jones Landscapes,R2075-OPS001,Grounds Maintenance - Contract,11/10/2013,"2,169.10 "
http://statistics.data.gov.uk/id/local-authority-district/23UB,Cheltenham Borough Council,14020019,DLS20752,D L Spencer & Co Limited,R4000-CUL103,Equipment Purchase,08/10/2013,604.55 
http://statistics.data.gov.uk/id/local-authority-district/23UB,Cheltenham Borough Council,14020300,1143,D W Brookes (Resurfacing Limited),R2075-OPS001,Grounds Maintenance - Contract,18/10/2013,"1,846.00 "
http://statistics.data.gov.uk/id/local-authority-district/23UB,Cheltenham Borough Council,14019989,3677,Dean Close Services Ltd (Bacon Theatre),R4401-DRM011,Services - Fees and Charges,11/10/2013,"3,225.36 "
http://statistics.data.gov.uk/id/local-authority-district/23UB,Cheltenham Borough Council,14019811,1314/006,Des Knight Limited,R4400-SUP009,Services - Professional Fees,04/10/2013,"2,100.00 "
http://statistics.data.gov.uk/id/local-authority-district/23UB,Cheltenham Borough Council,14019976,BD5885,Direct Publicity Limited,R4317-CUL102,Non Staff Advertising,11/10/2013,630.00 
http://statistics.data.gov.uk/id/local-authority-district/23UB,Cheltenham Borough Council,14019648,DG 3235,Dive Gym Equipment Limited,R2007-REC101,R & M of Plant Contracts,04/10/2013,781.68 
http://statistics.data.gov.uk/id/local-authority-district/23UB,Cheltenham Borough Council,14020341,2691,Dr Lyle & Partners,R4401-CCM001,Services - Fees and Charges,18/10/2013,"9,060.00 "
http://statistics.data.gov.uk/id/local-authority-district/23UB,Cheltenham Borough Council,14019164,434858,DTZ DTL Limited,R2001-CPK101,R & M of Fix & Fit - General,11/10/2013,"20,000.00 "
http://statistics.data.gov.uk/id/local-authority-district/23UB,Cheltenham Borough Council,14020331,140,Ecoarborist Limited,R2070-PLP006,Tree Work,18/10/2013,"1,000.00 "
http://statistics.data.gov.uk/id/local-authority-district/23UB,Cheltenham Borough Council,14020509,gct247-06,Enfusion Limited,R4400-PLP101,Services - Professional Fees,25/10/2013,"4,470.00 "
http://statistics.data.gov.uk/id/local-authority-district/23UB,Cheltenham Borough Council,14020507,gct247-07,Enfusion Limited,R4400-PLP101,Services - Professional Fees,25/10/2013,"2,000.00 "
http://statistics.data.gov.uk/id/local-authority-district/23UB,Cheltenham Borough Council,14020043,gct247-08,Enfusion Limited,R4400-PLP101,Services - Professional Fees,11/10/2013,"8,000.00 "
http://statistics.data.gov.uk/id/local-authority-district/23UB,Cheltenham Borough Council,14020561,WM004179,English Landscapes Limited t/a The Landscape Group,C1107-CAH005,Building Works,25/10/2013,"78,808.02 "
http://statistics.data.gov.uk/id/local-authority-district/23UB,Cheltenham Borough Council,14018674,HBFA/2162/01,Envex Contractors Limited,R5001-EMP001,TPP - Major External Contractors,11/10/2013,"77,558.57 "
http://statistics.data.gov.uk/id/local-authority-district/23UB,Cheltenham Borough Council,14020315,HBFA/2162/02,Envex Contractors Limited,R5001-EMP001,TPP - Major External Contractors,18/10/2013,"27,980.22 "
http://statistics.data.gov.uk/id/local-authority-district/23UB,Cheltenham Borough Council,14020565,3768,Environmental Management Solutions Limited,C1107-CAH012,Building Works,25/10/2013,"28,031.50 "
http://statistics.data.gov.uk/id/local-authority-district/23UB,Cheltenham Borough Council,14019793,INV1013,Facilities Management & Builiding Repairs Limited,C1107-CAH005,Building Works,08/10/2013,"1,196.60 "
http://statistics.data.gov.uk/id/local-authority-district/23UB,Cheltenham Borough Council,14019814,INV1014,Facilities Management & Builiding Repairs Limited,C1107-CAH005,Building Works,04/10/2013,"10,000.00 "
http://statistics.data.gov.uk/id/local-authority-district/23UB,Cheltenham Borough Council,14019813,INV1015,Facilities Management & Builiding Repairs Limited,C1107-CAH005,Building Works,04/10/2013,"18,376.00 "
http://statistics.data.gov.uk/id/local-authority-district/23UB,Cheltenham Borough Council,14020122,13278,Flu Xpress Limited,R4401-SUP003,Services - Fees and Charges,18/10/2013,995.04 
http://statistics.data.gov.uk/id/local-authority-district/23UB,Cheltenham Borough Council,14020387,32038,Fosters Rooms Limited,R4000-CUL107,Equipment Purchase,25/10/2013,"4,500.00 "
http://statistics.data.gov.uk/id/local-authority-district/23UB,Cheltenham Borough Council,14019896,1137,Frank Doric Investments Co Ltd (Dorchester House),R4971-HOM001,Bed & Breakfast payments,04/10/2013,750.00 
http://statistics.data.gov.uk/id/local-authority-district/23UB,Cheltenham Borough Council,14020476,1139,Frank Doric Investments Co Ltd (Dorchester House),R4971-HOM001,Bed & Breakfast payments,25/10/2013,750.00 
http://statistics.data.gov.uk/id/local-authority-district/23UB,Cheltenham Borough Council,14020346,477,Frontline Communication,R4401-CUL106,Services - Fees and Charges,18/10/2013,"2,000.00 "
http://statistics.data.gov.uk/id/local-authority-district/23UB,Cheltenham Borough Council,14020128,GP13/002607,G Purchase Construction Limited,C1107-CAH003,Building Works,18/10/2013,"18,000.00 "
http://statistics.data.gov.uk/id/local-authority-district/23UB,Cheltenham Borough Council,14020288,GP13/002848,G Purchase Construction Limited,C1107-CAH003,Building Works,25/10/2013,"53,882.89 "
http://statistics.data.gov.uk/id/local-authority-district/23UB,Cheltenham Borough Council,14020428,GP13/002850,G Purchase Construction Limited,C1107-CAH003,Building Works,25/10/2013,"29,438.28 "
http://statistics.data.gov.uk/id/local-authority-district/23UB,Cheltenham Borough Council,14020291,166,Gaskins Treework Specialists,R2070-PLP006,Tree Work,18/10/2013,"2,227.50 "
http://statistics.data.gov.uk/id/local-authority-district/23UB,Cheltenham Borough Council,14019983,623914,Global Radio Services Limited,R4014-REC101,Marketing,11/10/2013,"1,510.77 "
http://statistics.data.gov.uk/id/local-authority-district/23UB,Cheltenham Borough Council,14020537,1800288369,Gloucestershire County Council,R6280-PSH001,Grants,25/10/2013,"7,975.00 "
http://statistics.data.gov.uk/id/local-authority-district/23UB,Cheltenham Borough Council,14020297,INV-02351,Gloucestershire Enterprise Limited,R4400-ECD001,Services - Professional Fees,18/10/2013,"1,430.00 "
http://statistics.data.gov.uk/id/local-authority-district/23UB,Cheltenham Borough Council,14019484,30/09/2013,Gloucestershire Nightstop,R6280-HOM001,Grants,04/10/2013,"5,000.00 "
http://statistics.data.gov.uk/id/local-authority-district/23UB,Cheltenham Borough Council,14015083,2107,Gloucestershire Wildlife Trust,R4701-DEV001,Subscriptions,18/10/2013,"2,400.00 "
http://statistics.data.gov.uk/id/local-authority-district/23UB,Cheltenham Borough Council,14015083,2107,Gloucestershire Wildlife Trust,R4701-OPS002,Subscriptions,18/10/2013,"2,400.00 "
http://statistics.data.gov.uk/id/local-authority-district/23UB,Cheltenham Borough Council,14020041,56289,Gooch Group Limited,R5011-HRA110,Minor Neighbourhood Works - Coronation Square Areas,18/10/2013,"2,958.00 "
http://statistics.data.gov.uk/id/local-authority-district/23UB,Cheltenham Borough Council,14020015,SIN135611,Gradko International Limited,R4401-REG012,Services - Fees and Charges,11/10/2013,535.50 
http://statistics.data.gov.uk/id/local-authority-district/23UB,Cheltenham Borough Council,14020170,1388,Greenway Partnership Limited T/A GPL Building Services,R2083-CCM111,R&M of Build - Routine,18/10/2013,"1,875.00 "
http://statistics.data.gov.uk/id/local-authority-district/23UB,Cheltenham Borough Council,14020171,1396,Greenway Partnership Limited T/A GPL Building Services,R2043-ADB103,R & M of Build Drain Cleaning,18/10/2013,"1,690.00 "
http://statistics.data.gov.uk/id/local-authority-district/23UB,Cheltenham Borough Council,14019946,1470,Greenway Partnership Limited T/A GPL Building Services,R2078-OPS004,R&M of Build - external structures,18/10/2013,"7,485.50 "
http://statistics.data.gov.uk/id/local-authority-district/23UB,Cheltenham Borough Council,14019947,1471,Greenway Partnership Limited T/A GPL Building Services,R2078-OPS004,R&M of Build - external structures,18/10/2013,"1,679.00 "
http://statistics.data.gov.uk/id/local-authority-district/23UB,Cheltenham Borough Council,14020175,1498,Greenway Partnership Limited T/A GPL Building Services,R2077-CPK001,R&M of Build - internal structures,18/10/2013,947.00 
http://statistics.data.gov.uk/id/local-authority-district/23UB,Cheltenham Borough Council,14020172,1521,Greenway Partnership Limited T/A GPL Building Services,R2062-ADB103,R & M of Build Cyclical Electrical Remedials,18/10/2013,740.00 
http://statistics.data.gov.uk/id/local-authority-district/23UB,Cheltenham Borough Council,14019769,1569,Greenway Partnership Limited T/A GPL Building Services,R2007-OPS001,R & M of Plant Contracts,04/10/2013,"2,587.85 "
http://statistics.data.gov.uk/id/local-authority-district/23UB,Cheltenham Borough Council,14020174,1588,Greenway Partnership Limited T/A GPL Building Services,R2700-ADB103,Contract Cleaning,18/10/2013,940.00 
http://statistics.data.gov.uk/id/local-authority-district/23UB,Cheltenham Borough Council,14020111,630547,Group Creative Limited,R4014-REC101,Marketing,18/10/2013,"1,950.00 "
http://statistics.data.gov.uk/id/local-authority-district/23UB,Cheltenham Borough Council,14020361,3541/13,Guardian Preservation Services LLP,R2077-FIE040,R&M of Build - internal structures,25/10/2013,"4,540.00 "
http://statistics.data.gov.uk/id/local-authority-district/23UB,Cheltenham Borough Council,14019803,14360,Halcrow Group Limited,R5001-EMP001,TPP - Major External Contractors,04/10/2013,"5,944.44 "
http://statistics.data.gov.uk/id/local-authority-district/23UB,Cheltenham Borough Council,14020228,16273,Halcrow Group Limited,R5001-EMP001,TPP - Major External Contractors,18/10/2013,"2,815.00 "
http://statistics.data.gov.uk/id/local-authority-district/23UB,Cheltenham Borough Council,14020227,16275,Halcrow Group Limited,R5001-EMP001,TPP - Major External Contractors,18/10/2013,"3,595.60 "
http://statistics.data.gov.uk/id/local-authority-district/23UB,Cheltenham Borough Council,14020247,SIAL/00004663,Herefordshire Housing Limited,R4445-HRA110,Communal Alarms - Monitoring & Maintenance,18/10/2013,518.70 
http://statistics.data.gov.uk/id/local-authority-district/23UB,Cheltenham Borough Council,14020232,SIAL/00004763,Herefordshire Housing Limited,R4445-HRA110,Communal Alarms - Monitoring & Maintenance,18/10/2013,"5,519.14 "
http://statistics.data.gov.uk/id/local-authority-district/23UB,Cheltenham Borough Council,14019917,HWP 18-13,Hesters Way Partnership Limited,R6280-GBD001,Grants,04/10/2013,"18,100.00 "
http://statistics.data.gov.uk/id/local-authority-district/23UB,Cheltenham Borough Council,14020084,CISDEDUCT080813TO080913,HMRC (CBC - CIS),B6220-BAL100,CIS Deductions Control (reallocated),11/10/2013,"4,244.13 "
http://statistics.data.gov.uk/id/local-authority-district/23UB,Cheltenham Borough Council,14019991,20932,Hoge 100 Business Systems Limited,R4534-CCM001,IT - Maint Agreements,11/10/2013,"3,418.88 "
http://statistics.data.gov.uk/id/local-authority-district/23UB,Cheltenham Borough Council,14019921,HOWLERS SETTLEMENT,Howlers Comedy Club,R9406-HLD140,Lettings,04/10/2013,"1,617.00 "
http://statistics.data.gov.uk/id/local-authority-district/23UB,Cheltenham Borough Council,14020353,4489,Humidity Solutions Limited,R4000-REC101,Equipment Purchase,18/10/2013,562.08 
http://statistics.data.gov.uk/id/local-authority-district/23UB,Cheltenham Borough Council,14019698,150170AA6,Ian Williams Limited,R2060-HRA100,R & M of Build Cyclical Painting Communal Areas,04/10/2013,"24,478.01 "
http://statistics.data.gov.uk/id/local-authority-district/23UB,Cheltenham Borough Council,14020210,5621,Icon.net Limited,R4537-CUL107,IT - Internet,18/10/2013,600.00 
http://statistics.data.gov.uk/id/local-authority-district/23UB,Cheltenham Borough Council,14020430,7001238,Idox Software Limited,R4531-REG002,IT - Purchase of Software,25/10/2013,950.00 
http://statistics.data.gov.uk/id/local-authority-district/23UB,Cheltenham Borough Council,14019928,InFXnet 01508,Infx Networks Limited,R4300-CUL110,Printing - Services,04/10/2013,825.00 
http://statistics.data.gov.uk/id/local-authority-district/23UB,Cheltenham Borough Council,14020440,13/049,J P North (Farmer),R2071-OPS002,Open Spaces and Grassed Areas,25/10/2013,500.00 
http://statistics.data.gov.uk/id/local-authority-district/23UB,Cheltenham Borough Council,14019651,1080,Jayson R C Bayliss,C4000-CAP102,Acquisition of Equipment,04/10/2013,"7,893.00 "
http://statistics.data.gov.uk/id/local-authority-district/23UB,Cheltenham Borough Council,14019650,1081,Jayson R C Bayliss,R2500-OPS001,Fixtures and Fittings - Purchases,04/10/2013,590.00 
http://statistics.data.gov.uk/id/local-authority-district/23UB,Cheltenham Borough Council,14019943,1893,John Robinson Electrical,R2004-CCM111,R & M of Build Programmed,08/10/2013,813.00 
http://statistics.data.gov.uk/id/local-authority-district/23UB,Cheltenham Borough Council,14020161,1894,John Robinson Electrical,R2004-CCM111,R & M of Build Programmed,18/10/2013,"1,140.00 "
http://statistics.data.gov.uk/id/local-authority-district/23UB,Cheltenham Borough Council,14020414,1899,John Robinson Electrical,R2004-CCM111,R & M of Build Programmed,25/10/2013,"3,689.00 "
http://statistics.data.gov.uk/id/local-authority-district/23UB,Cheltenham Borough Council,14019210,2539,John Ryde Commercial,R2200-CPK001,Rent,04/10/2013,"8,875.00 "
http://statistics.data.gov.uk/id/local-authority-district/23UB,Cheltenham Borough Council,14019924,EN-002-0114359,Jones Lang Lasalle Limited,R4400-CPK001,Services - Professional Fees,11/10/2013,"3,250.00 "
http://statistics.data.gov.uk/id/local-authority-district/23UB,Cheltenham Borough Council,14020047,4938,JS Facilities Group Limited,R2705-CUL107,Security Systems,11/10/2013,"10,706.50 "
http://statistics.data.gov.uk/id/local-authority-district/23UB,Cheltenham Borough Council,14020488,5325,JS Facilities Group Limited,R2705-CUL107,Security Systems,25/10/2013,"3,880.50 "
http://statistics.data.gov.uk/id/local-authority-district/23UB,Cheltenham Borough Council,14019451,736663,Liberty Gas Group,R2040-HRA100,R & M of Build Central Heating,18/10/2013,"25,768.84 "
http://statistics.data.gov.uk/id/local-authority-district/23UB,Cheltenham Borough Council,14020325,746658,Liberty Gas Group,R2040-HRA100,R & M of Build Central Heating,25/10/2013,"25,768.84 "
http://statistics.data.gov.uk/id/local-authority-district/23UB,Cheltenham Borough Council,14020079,9 tamar road 101013,Longlevens Building & Roofing Limited,C1107-CAH038,Building Works,18/10/2013,"7,005.00 "
http://statistics.data.gov.uk/id/local-authority-district/23UB,Cheltenham Borough Council,14020081,9 TAMAR ROAD 101013.,Longlevens Building & Roofing Limited,C1107-CAH028,Building Works,11/10/2013,"27,000.00 "
http://statistics.data.gov.uk/id/local-authority-district/23UB,Cheltenham Borough Council,14019468,MP1585,Makin Projects Ltd,R4029-CUL107,Displays,04/10/2013,"2,000.00 "
http://statistics.data.gov.uk/id/local-authority-district/23UB,Cheltenham Borough Council,14019446,C22610,Mansell Construction Services Limited,C1107-CAH007,Building Works,04/10/2013,"19,448.50 "
http://statistics.data.gov.uk/id/local-authority-district/23UB,Cheltenham Borough Council,14019199,ZJB0021540,Marshalls Plc,R4000-ENF103,Equipment Purchase,04/10/2013,"1,400.00 "
http://statistics.data.gov.uk/id/local-authority-district/23UB,Cheltenham Borough Council,14020461,133110,Matta Products (UK) Limited,C4000-CAP102,Acquisition of Equipment,25/10/2013,"34,077.55 "
http://statistics.data.gov.uk/id/local-authority-district/23UB,Cheltenham Borough Council,14019430,4349,Mcdonnell Price Roofing Contractors Limited,C1107-CAH016,Building Works,18/10/2013,"4,323.20 "
http://statistics.data.gov.uk/id/local-authority-district/23UB,Cheltenham Borough Council,14019700,36,Meantime,R6280-CUL001,Grants,04/10/2013,800.00 
http://statistics.data.gov.uk/id/local-authority-district/23UB,Cheltenham Borough Council,14019828,633,MHP Design Limited,C1107-CAH005,Building Works,04/10/2013,"1,325.00 "
http://statistics.data.gov.uk/id/local-authority-district/23UB,Cheltenham Borough Council,14019827,634,MHP Design Limited,C1107-CAH005,Building Works,04/10/2013,"1,215.00 "
http://statistics.data.gov.uk/id/local-authority-district/23UB,Cheltenham Borough Council,14020129,9490,Michael Dyson Associates Limited,R2004-FIE040,R & M of Build Programmed,18/10/2013,"16,875.00 "
http://statistics.data.gov.uk/id/local-authority-district/23UB,Cheltenham Borough Council,14020276,913,Miss Helen Whitfield,R4446-REC101,Coaching Fees,18/10/2013,756.00 
http://statistics.data.gov.uk/id/local-authority-district/23UB,Cheltenham Borough Council,14020579,5822/90645744,Mitie Pest Control Limited,C1100-CAP121,Construction,25/10/2013,573.00 
http://statistics.data.gov.uk/id/local-authority-district/23UB,Cheltenham Borough Council,14020370,1547,MPL Wrought Iron LLP,R2075-OPS001,Grounds Maintenance - Contract,18/10/2013,975.00 
http://statistics.data.gov.uk/id/local-authority-district/23UB,Cheltenham Borough Council,14020030,300913,Mr J Sureda,R4401-CCM001,Services - Fees and Charges,11/10/2013,780.60 
http://statistics.data.gov.uk/id/local-authority-district/23UB,Cheltenham Borough Council,14019914,2013CHELT/SALS02,Mumkin Operational Services,R4003-OPS002,Tools & Equipment - R & M,04/10/2013,584.00 
http://statistics.data.gov.uk/id/local-authority-district/23UB,Cheltenham Borough Council,14020125,80345,Nathaniel Lichfield & Partners,R4400-PLP101,Services - Professional Fees,18/10/2013,529.00 
http://statistics.data.gov.uk/id/local-authority-district/23UB,Cheltenham Borough Council,14019985,AREXT/00147147,National Express Limited,R4901-HLD120,Commission,11/10/2013,"1,526.81 "
http://statistics.data.gov.uk/id/local-authority-district/23UB,Cheltenham Borough Council,14019707,100313,Nationwide Platforms Limited,R4000-CUL107,Equipment Purchase,04/10/2013,"7,750.00 "
http://statistics.data.gov.uk/id/local-authority-district/23UB,Cheltenham Borough Council,14019957,13/00226/PMIN/82526,Neil Fletcher,R2004-OPS101,R & M of Build Programmed,04/10/2013,"2,095.70 "
http://statistics.data.gov.uk/id/local-authority-district/23UB,Cheltenham Borough Council,14019957,13/00226/PMIN/82526,Neil Fletcher,R2004-OPS101,R & M of Build Programmed,04/10/2013,"2,200.00 "
http://statistics.data.gov.uk/id/local-authority-district/23UB,Cheltenham Borough Council,14019958,13/00227/PMIN/82527,Neil Fletcher,R2004-OPS101,R & M of Build Programmed,04/10/2013,"1,620.00 "
http://statistics.data.gov.uk/id/local-authority-district/23UB,Cheltenham Borough Council,14020317,5781,NKS Contracts (Central) Limited,C1107-CAH004,Building Works,18/10/2013,"49,123.93 "
http://statistics.data.gov.uk/id/local-authority-district/23UB,Cheltenham Borough Council,14019933,LGULGZVF,Npower Limited (Oldbury),R2100-CUL117,Electricity,08/10/2013,588.80 
http://statistics.data.gov.uk/id/local-authority-district/23UB,Cheltenham Borough Council,14019932,LGULQR56,Npower Limited (Oldbury),R2100-CUL117,Electricity,08/10/2013,738.10 
http://statistics.data.gov.uk/id/local-authority-district/23UB,Cheltenham Borough Council,14019930,LGUMFYG3,Npower Limited (Oldbury),R2100-CUL117,Electricity,08/10/2013,"1,951.34 "
http://statistics.data.gov.uk/id/local-authority-district/23UB,Cheltenham Borough Council,14019931,LGYL7BJR,Npower Limited (Oldbury),R2100-CUL117,Electricity,08/10/2013,"1,734.91 "
http://statistics.data.gov.uk/id/local-authority-district/23UB,Cheltenham Borough Council,14020527,2013/142,Oakley Regeneration Partnership,R6280-GBD001,Grants,25/10/2013,"18,100.00 "
http://statistics.data.gov.uk/id/local-authority-district/23UB,Cheltenham Borough Council,14019798,532697,OpenView Security Solutions Limited,R4003-CCT001,Tools & Equipment - R & M,04/10/2013,"1,419.17 "
http://statistics.data.gov.uk/id/local-authority-district/23UB,Cheltenham Borough Council,14019781,74,Orchestra of St John's,R4322-CUL110,Artists Fees,04/10/2013,"7,080.46 "
http://statistics.data.gov.uk/id/local-authority-district/23UB,Cheltenham Borough Council,14020192,CS801939227,Otis Limited,R2007-REC111,R & M of Plant Contracts,18/10/2013,"5,220.54 "
http://statistics.data.gov.uk/id/local-authority-district/23UB,Cheltenham Borough Council,14019467,4509,Oval Workshop Limited,R4401-CUL106,Services - Fees and Charges,04/10/2013,"9,168.00 "
http://statistics.data.gov.uk/id/local-authority-district/23UB,Cheltenham Borough Council,14019465,4516,Oval Workshop Limited,R4013-CUL107,Exhibition Supplies,18/10/2013,"1,004.04 "
http://statistics.data.gov.uk/id/local-authority-district/23UB,Cheltenham Borough Council,14019465,4516,Oval Workshop Limited,R3203-CUL107,Hire of Other Vehicles,18/10/2013,800.00 
http://statistics.data.gov.uk/id/local-authority-district/23UB,Cheltenham Borough Council,14019659,1117267,Pace Fuelcare Limited,R3001-HLD102,Diesel,04/10/2013,"39,593.00 "
http://statistics.data.gov.uk/id/local-authority-district/23UB,Cheltenham Borough Council,14020261,1216211,Pace Fuelcare Limited,R3001-HLD102,Diesel,18/10/2013,"38,307.80 "
http://statistics.data.gov.uk/id/local-authority-district/23UB,Cheltenham Borough Council,14019808,9589/6101/PS,Park Leisure Limited,R4000-OPS002,Equipment Purchase,04/10/2013,"1,900.00 "
http://statistics.data.gov.uk/id/local-authority-district/23UB,Cheltenham Borough Council,14019737,60400165,Personnel Hygiene Services (PHS Group),R4401-CUL117,Services - Fees and Charges,08/10/2013,873.00 
http://statistics.data.gov.uk/id/local-authority-district/23UB,Cheltenham Borough Council,14020046,1004,Phil McIntyre Entertainments Limited,R4322-CUL110,Artists Fees,11/10/2013,"14,422.08 "
http://statistics.data.gov.uk/id/local-authority-district/23UB,Cheltenham Borough Council,14020338,PH98464,Physical Company,R4000-REC101,Equipment Purchase,25/10/2013,849.71 
http://statistics.data.gov.uk/id/local-authority-district/23UB,Cheltenham Borough Council,14020277,21936,Pickering Scales,C1105-CAP121,Design Services,18/10/2013,"1,505.00 "
http://statistics.data.gov.uk/id/local-authority-district/23UB,Cheltenham Borough Council,14019876,87576235,Ricoh UK Limited,R4533-SUP005,IT - Repair and Maint,11/10/2013,"1,341.32 "
http://statistics.data.gov.uk/id/local-authority-district/23UB,Cheltenham Borough Council,14020003,417866,Roman Glass,C4000-CAP111,Acquisition of Equipment,11/10/2013,"1,796.00 "
http://statistics.data.gov.uk/id/local-authority-district/23UB,Cheltenham Borough Council,14020072,26969,Royal Air Force Charitable Trust Enterprises,R4901-HLD120,Commission,11/10/2013,"4,224.75 "
http://statistics.data.gov.uk/id/local-authority-district/23UB,Cheltenham Borough Council,14019899,9045002597,Royal Mail,R4520-SUP012,Postages - stamps,11/10/2013,663.70 
http://statistics.data.gov.uk/id/local-authority-district/23UB,Cheltenham Borough Council,14020116,9045016848,Royal Mail,R4317-CUL102,Non Staff Advertising,18/10/2013,525.18 
http://statistics.data.gov.uk/id/local-authority-district/23UB,Cheltenham Borough Council,14020194,9045093024,Royal Mail,R4521-LTC001,Postages - franking machine,18/10/2013,730.64 
http://statistics.data.gov.uk/id/local-authority-district/23UB,Cheltenham Borough Council,14019622,SANDFORD LIDO AUGUST 2013,Sandford Parks Lido (Trading) Limited,R5003-CPK103,TPP - Agency Fees,04/10/2013,"23,843.84 "
http://statistics.data.gov.uk/id/local-authority-district/23UB,Cheltenham Borough Council,14020465,SANDFORD LIDO SEPT,Sandford Parks Lido (Trading) Limited,R5003-CPK103,TPP - Agency Fees,25/10/2013,"23,848.35 "
http://statistics.data.gov.uk/id/local-authority-district/23UB,Cheltenham Borough Council,14019832,384,SAS EPC,R2018-HRA100,R & M of Build Voids Energy Performance Certificates,04/10/2013,"1,125.00 "
http://statistics.data.gov.uk/id/local-authority-district/23UB,Cheltenham Borough Council,14020184,423766,Security Plus+ Limited,R4435-CPK002,Cash Collection Contract,18/10/2013,"1,012.85 "
http://statistics.data.gov.uk/id/local-authority-district/23UB,Cheltenham Borough Council,14020402,624106190,Severn Trent Water,R2402-ADB103,Sewerage and Environmental Services,25/10/2013,"5,956.88 "
http://statistics.data.gov.uk/id/local-authority-district/23UB,Cheltenham Borough Council,14020097,5939,Severn Wye Energy Agency Limited,C5000-CAP224,Grants,18/10/2013,"10,000.00 "
http://statistics.data.gov.uk/id/local-authority-district/23UB,Cheltenham Borough Council,14018618,75391,Signcraft Limited,R2078-ADB101,R&M of Build - external structures,04/10/2013,660.00 
http://statistics.data.gov.uk/id/local-authority-district/23UB,Cheltenham Borough Council,14020083,settlement,Sound Made Simple Limited T/A Cleeve Concerts,R9406-HLD140,Lettings,11/10/2013,"1,020.00 "
http://statistics.data.gov.uk/id/local-authority-district/23UB,Cheltenham Borough Council,14020540,SIN031062,Space Catering Equipment Limited,R4000-CUL102,Equipment Purchase,25/10/2013,"2,823.72 "
http://statistics.data.gov.uk/id/local-authority-district/23UB,Cheltenham Borough Council,14019961,10019,Spacecraft International,R4005-CUL107,Furniture - Purchases,11/10/2013,"34,294.95 "
http://statistics.data.gov.uk/id/local-authority-district/23UB,Cheltenham Borough Council,14019962,10020,Spacecraft International,R4005-CUL107,Furniture - Purchases,11/10/2013,"24,428.19 "
http://statistics.data.gov.uk/id/local-authority-district/23UB,Cheltenham Borough Council,14019963,10021,Spacecraft International,R4510-CUL107,Delivery Charges,11/10/2013,500.00 
http://statistics.data.gov.uk/id/local-authority-district/23UB,Cheltenham Borough Council,14019523,351988,SSE Contracting Limited T/A Southern Electric Contracting Limited,R2061-HRA100,R & M of Build Cyclical Electric Inspections,11/10/2013,"3,700.28 "
http://statistics.data.gov.uk/id/local-authority-district/23UB,Cheltenham Borough Council,14020086,00246147A,Stage Electrics Partnership Limited T/A Stage Electrics,C1105-CAP121,Design Services,18/10/2013,"7,971.42 "
http://statistics.data.gov.uk/id/local-authority-district/23UB,Cheltenham Borough Council,14020086,00246147A,Stage Electrics Partnership Limited T/A Stage Electrics,R4029-CUL107,Displays,18/10/2013,811.43 
http://statistics.data.gov.uk/id/local-authority-district/23UB,Cheltenham Borough Council,14020275,00246185A,Stage Electrics Partnership Limited T/a Stage Electrics,C1105-CAP121,Design Services,18/10/2013,"3,479.41 "
http://statistics.data.gov.uk/id/local-authority-district/23UB,Cheltenham Borough Council,14020298,246856,Stage Electrics Partnership Limited T/a Stage Electrics,R4000-CUL107,Equipment Purchase,25/10/2013,"8,885.00 "
http://statistics.data.gov.uk/id/local-authority-district/23UB,Cheltenham Borough Council,14020252,08/01/2013,Steph Lewis,R1652-REC101,Training Fees (External),18/10/2013,500.00 
http://statistics.data.gov.uk/id/local-authority-district/23UB,Cheltenham Borough Council,14020044,012Gig012 2013/14,Steve Ashley,R4322-CUL110,Artists Fees,11/10/2013,596.84 
http://statistics.data.gov.uk/id/local-authority-district/23UB,Cheltenham Borough Council,14020438,SI-191374,Straight plc,R4000-RYC006,Equipment Purchase,25/10/2013,822.48 
http://statistics.data.gov.uk/id/local-authority-district/23UB,Cheltenham Borough Council,14019653,22507,Streetmaster (South Wales) Limited,R2500-OPS001,Fixtures and Fittings - Purchases,04/10/2013,816.00 
http://statistics.data.gov.uk/id/local-authority-district/23UB,Cheltenham Borough Council,14020552,22589,Streetmaster (South Wales) Limited,R2500-OPS001,Fixtures and Fittings - Purchases,25/10/2013,816.00 
http://statistics.data.gov.uk/id/local-authority-district/23UB,Cheltenham Borough Council,14020553,22590,Streetmaster (South Wales) Limited,R2500-OPS001,Fixtures and Fittings - Purchases,25/10/2013,830.00 
http://statistics.data.gov.uk/id/local-authority-district/23UB,Cheltenham Borough Council,14019922,30057,System Six Design & Build,C1100-CAP121,Construction,04/10/2013,750.00 
http://statistics.data.gov.uk/id/local-authority-district/23UB,Cheltenham Borough Council,14019953,3047,System Six Design & Build,R4401-DRM012,Services - Fees and Charges,04/10/2013,675.00 
http://statistics.data.gov.uk/id/local-authority-district/23UB,Cheltenham Borough Council,14019546,3052,System Six Design & Build,R2083-OPS122,R&M of Build - Routine,11/10/2013,"2,098.00 "
http://statistics.data.gov.uk/id/local-authority-district/23UB,Cheltenham Borough Council,14019547,3053,System Six Design & Build,R2083-REC111,R&M of Build - Routine,04/10/2013,546.00 
http://statistics.data.gov.uk/id/local-authority-district/23UB,Cheltenham Borough Council,14019942,3058,System Six Design & Build,R2004-REC111,R & M of Build Programmed,08/10/2013,"3,260.00 "
http://statistics.data.gov.uk/id/local-authority-district/23UB,Cheltenham Borough Council,14019929,3059,System Six Design & Build,R2004-REC111,R & M of Build Programmed,08/10/2013,"1,425.00 "
http://statistics.data.gov.uk/id/local-authority-district/23UB,Cheltenham Borough Council,14019938,3060,System Six Design & Build,C1100-CAP121,Construction,04/10/2013,878.00 
http://statistics.data.gov.uk/id/local-authority-district/23UB,Cheltenham Borough Council,14019959,3069,System Six Design & Build,C1100-CAP121,Construction,04/10/2013,"3,315.00 "
http://statistics.data.gov.uk/id/local-authority-district/23UB,Cheltenham Borough Council,14020416,3071,System Six Design & Build,R2004-CUL112,R & M of Build Programmed,25/10/2013,"1,882.00 "
http://statistics.data.gov.uk/id/local-authority-district/23UB,Cheltenham Borough Council,14020417,3072,System Six Design & Build,C1100-CAP121,Construction,25/10/2013,"1,508.00 "
http://statistics.data.gov.uk/id/local-authority-district/23UB,Cheltenham Borough Council,14020418,3073,System Six Design & Build,C1100-CAP121,Construction,25/10/2013,"5,369.20 "
http://statistics.data.gov.uk/id/local-authority-district/23UB,Cheltenham Borough Council,14019273,DEBT102546,Tewkesbury Borough Council,R4420-HRA110,Legal Expenses And Court Costs,04/10/2013,"6,373.00 "
http://statistics.data.gov.uk/id/local-authority-district/23UB,Cheltenham Borough Council,14019191,DEBT102559,Tewkesbury Borough Council,R4317-CCR001,Non Staff Advertising,04/10/2013,806.00 
http://statistics.data.gov.uk/id/local-authority-district/23UB,Cheltenham Borough Council,14020180,DEBT102586,Tewkesbury Borough Council,R4401-BUC001,Services - Fees and Charges,18/10/2013,"8,250.14 "
http://statistics.data.gov.uk/id/local-authority-district/23UB,Cheltenham Borough Council,14020181,DEBT102592,Tewkesbury Borough Council,R4401-PLP101,Services - Fees and Charges,18/10/2013,"3,500.00 "
http://statistics.data.gov.uk/id/local-authority-district/23UB,Cheltenham Borough Council,14020223,DEBT102601,Tewkesbury Borough Council,R4420-HRA110,Legal Expenses And Court Costs,25/10/2013,"2,185.00 "
http://statistics.data.gov.uk/id/local-authority-district/23UB,Cheltenham Borough Council,14020219,DEBT102602,Tewkesbury Borough Council,R4400-FIE040,Services - Professional Fees,18/10/2013,"2,372.00 "
http://statistics.data.gov.uk/id/local-authority-district/23UB,Cheltenham Borough Council,14020531,28683,The Darkroom UK Limited,R4013-CUL107,Exhibition Supplies,25/10/2013,782.00 
http://statistics.data.gov.uk/id/local-authority-district/23UB,Cheltenham Borough Council,14019825,1260a,The Hub Consulting Limited,C1105-CAP121,Design Services,04/10/2013,"166,864.72 "
http://statistics.data.gov.uk/id/local-authority-district/23UB,Cheltenham Borough Council,14019904,8.50028E+11,The Midcounties Co-operative,B1670-BAL100,Assets under construction - Other depreciation/impairment movements,18/10/2013,"2,825.00 "
http://statistics.data.gov.uk/id/local-authority-district/23UB,Cheltenham Borough Council,14019918,2000,The Rock,R6280-GBD001,Grants,04/10/2013,800.00 
http://statistics.data.gov.uk/id/local-authority-district/23UB,Cheltenham Borough Council,14019871,REDACTED,The Surveying Practice - Client Account,C5000-CAP221,Grants,04/10/2013,"6,052.50 "
http://statistics.data.gov.uk/id/local-authority-district/23UB,Cheltenham Borough Council,14019777,REDACTED,The Surveying Practice - Client Account,C5000-CAP221,Grants,04/10/2013,"14,447.59 "
http://statistics.data.gov.uk/id/local-authority-district/23UB,Cheltenham Borough Council,14019776,REDACTED,The Surveying Practice - Client Account,C5000-CAP221,Grants,04/10/2013,"9,882.40 "
http://statistics.data.gov.uk/id/local-authority-district/23UB,Cheltenham Borough Council,14019872,REDACTED,The Surveying Practice - Client Account,C5000-CAP221,Grants,04/10/2013,"27,630.00 "
http://statistics.data.gov.uk/id/local-authority-district/23UB,Cheltenham Borough Council,14019869,REDACTED,The Surveying Practice - Client Account,C1107-CAH028,Building Works,04/10/2013,"10,417.50 "
http://statistics.data.gov.uk/id/local-authority-district/23UB,Cheltenham Borough Council,14019868,REDACTED,The Surveying Practice - Client Account,C5000-CAP221,Grants,04/10/2013,"8,890.88 "
http://statistics.data.gov.uk/id/local-authority-district/23UB,Cheltenham Borough Council,14020080,REDACTED,The Surveying Practice - Client Account,C1107-CAH038,Building Works,11/10/2013,"2,000.00 "
http://statistics.data.gov.uk/id/local-authority-district/23UB,Cheltenham Borough Council,14019870,REDACTED,The Surveying Practice - Client Account,C5000-CAP221,Grants,04/10/2013,"6,640.32 "
http://statistics.data.gov.uk/id/local-authority-district/23UB,Cheltenham Borough Council,14019530,60002179,Ubico Limited,R5001-WST001,TPP - Major External Contractors,04/10/2013,"91,000.00 "
http://statistics.data.gov.uk/id/local-authority-district/23UB,Cheltenham Borough Council,14019530,60002179,Ubico Limited,R5001-TRW001,TPP - Major External Contractors,04/10/2013,"47,575.00 "
http://statistics.data.gov.uk/id/local-authority-district/23UB,Cheltenham Borough Council,14019530,60002179,Ubico Limited,R5001-STC001,TPP - Major External Contractors,04/10/2013,"64,300.00 "
http://statistics.data.gov.uk/id/local-authority-district/23UB,Cheltenham Borough Council,14019530,60002179,Ubico Limited,R5001-RYC004,TPP - Major External Contractors,04/10/2013,"43,883.33 "
http://statistics.data.gov.uk/id/local-authority-district/23UB,Cheltenham Borough Council,14019530,60002179,Ubico Limited,R5001-RYC005,TPP - Major External Contractors,04/10/2013,"14,950.00 "
http://statistics.data.gov.uk/id/local-authority-district/23UB,Cheltenham Borough Council,14019530,60002179,Ubico Limited,R5001-REG019,TPP - Major External Contractors,04/10/2013,"4,891.67 "
http://statistics.data.gov.uk/id/local-authority-district/23UB,Cheltenham Borough Council,14019530,60002179,Ubico Limited,R5001-RYC006,TPP - Major External Contractors,04/10/2013,"103,970.83 "
http://statistics.data.gov.uk/id/local-authority-district/23UB,Cheltenham Borough Council,14019530,60002179,Ubico Limited,R5001-RYC002,TPP - Major External Contractors,04/10/2013,"24,950.00 "
http://statistics.data.gov.uk/id/local-authority-district/23UB,Cheltenham Borough Council,14019530,60002179,Ubico Limited,R2071-HRA110,Open Spaces and Grassed Areas,04/10/2013,"26,208.33 "
http://statistics.data.gov.uk/id/local-authority-district/23UB,Cheltenham Borough Council,14019530,60002179,Ubico Limited,R5001-OPS001,TPP - Major External Contractors,04/10/2013,"42,608.33 "
http://statistics.data.gov.uk/id/local-authority-district/23UB,Cheltenham Borough Council,14019530,60002179,Ubico Limited,R2075-ESR001,Grounds Maintenance - Contract,04/10/2013,"25,291.67 "
http://statistics.data.gov.uk/id/local-authority-district/23UB,Cheltenham Borough Council,14019530,60002179,Ubico Limited,R5001-OPS002,TPP - Major External Contractors,04/10/2013,"49,016.67 "
http://statistics.data.gov.uk/id/local-authority-district/23UB,Cheltenham Borough Council,14019530,60002179,Ubico Limited,R5001-OPS101,TPP - Major External Contractors,04/10/2013,"13,691.67 "
http://statistics.data.gov.uk/id/local-authority-district/23UB,Cheltenham Borough Council,14019724,60002212,Ubico Limited,R3001-CCM001,Diesel,04/10/2013,663.37 
http://statistics.data.gov.uk/id/local-authority-district/23UB,Cheltenham Borough Council,14020425,60002393,Ubico Limited,R5001-REG019,TPP - Major External Contractors,25/10/2013,"4,891.67 "
http://statistics.data.gov.uk/id/local-authority-district/23UB,Cheltenham Borough Council,14020425,60002393,Ubico Limited,R5001-RYC006,TPP - Major External Contractors,25/10/2013,"111,720.83 "
http://statistics.data.gov.uk/id/local-authority-district/23UB,Cheltenham Borough Council,14020425,60002393,Ubico Limited,R5001-RYC006,TPP - Major External Contractors,25/10/2013,"46,500.00 "
http://statistics.data.gov.uk/id/local-authority-district/23UB,Cheltenham Borough Council,14020425,60002393,Ubico Limited,R5001-RYC002,TPP - Major External Contractors,25/10/2013,"24,950.00 "
http://statistics.data.gov.uk/id/local-authority-district/23UB,Cheltenham Borough Council,14020425,60002393,Ubico Limited,R2071-HRA110,Open Spaces and Grassed Areas,25/10/2013,"26,208.33 "
http://statistics.data.gov.uk/id/local-authority-district/23UB,Cheltenham Borough Council,14020425,60002393,Ubico Limited,R5001-OPS001,TPP - Major External Contractors,25/10/2013,"42,608.33 "
http://statistics.data.gov.uk/id/local-authority-district/23UB,Cheltenham Borough Council,14020425,60002393,Ubico Limited,R2075-ESR001,Grounds Maintenance - Contract,25/10/2013,"25,291.67 "
http://statistics.data.gov.uk/id/local-authority-district/23UB,Cheltenham Borough Council,14020425,60002393,Ubico Limited,R5001-OPS002,TPP - Major External Contractors,25/10/2013,"49,016.67 "
http://statistics.data.gov.uk/id/local-authority-district/23UB,Cheltenham Borough Council,14020425,60002393,Ubico Limited,R5001-OPS101,TPP - Major External Contractors,25/10/2013,"13,691.67 "
http://statistics.data.gov.uk/id/local-authority-district/23UB,Cheltenham Borough Council,14020425,60002393,Ubico Limited,R5001-WST001,TPP - Major External Contractors,25/10/2013,"91,000.00 "
http://statistics.data.gov.uk/id/local-authority-district/23UB,Cheltenham Borough Council,14020425,60002393,Ubico Limited,R5001-TRW001,TPP - Major External Contractors,25/10/2013,"47,575.00 "
http://statistics.data.gov.uk/id/local-authority-district/23UB,Cheltenham Borough Council,14020425,60002393,Ubico Limited,R5001-STC001,TPP - Major External Contractors,25/10/2013,"64,300.00 "
http://statistics.data.gov.uk/id/local-authority-district/23UB,Cheltenham Borough Council,14020425,60002393,Ubico Limited,R5001-RYC004,TPP - Major External Contractors,25/10/2013,"43,883.33 "
http://statistics.data.gov.uk/id/local-authority-district/23UB,Cheltenham Borough Council,14020425,60002393,Ubico Limited,R5001-RYC005,TPP - Major External Contractors,25/10/2013,"14,950.00 "
http://statistics.data.gov.uk/id/local-authority-district/23UB,Cheltenham Borough Council,14020319,82500214,United Fork Trucks (1992) Limited,C2000-CAP301,Acquisition of Vehicles,25/10/2013,"7,500.00 "
http://statistics.data.gov.uk/id/local-authority-district/23UB,Cheltenham Borough Council,14019879,2.50001E+13,Valuation Office Agency (VOA),R4400-DEV001,Services - Professional Fees,11/10/2013,"5,340.00 "
http://statistics.data.gov.uk/id/local-authority-district/23UB,Cheltenham Borough Council,14020301,2.50001E+13,Valuation Office Agency (VOA),R4400-DEV001,Services - Professional Fees,18/10/2013,637.88 
http://statistics.data.gov.uk/id/local-authority-district/23UB,Cheltenham Borough Council,14019968,2266,Vision 21,R5001-WST001,TPP - Major External Contractors,04/10/2013,"1,931.25 "
http://statistics.data.gov.uk/id/local-authority-district/23UB,Cheltenham Borough Council,14020384,UK10/102013/9467,Vodafone Limited,R7001-SUP005,ICT,25/10/2013,"2,590.80 "
http://statistics.data.gov.uk/id/local-authority-district/23UB,Cheltenham Borough Council,14019697,1997,West Midlands Services Limited,C1107-CAH014,Building Works,04/10/2013,"4,300.00 "
http://statistics.data.gov.uk/id/local-authority-district/23UB,Cheltenham Borough Council,14020328,224853,Winkworth Sherwood,R4401-SUP036,Services - Fees and Charges,18/10/2013,"1,580.00 "
http://statistics.data.gov.uk/id/local-authority-district/23UB,Cheltenham Borough Council,14018184,SUP0453,XN Leisure Systems Limited,R4534-REC101,IT - Maint Agreements,04/10/2013,"1,110.69 "
http://statistics.data.gov.uk/id/local-authority-district/23UB,Cheltenham Borough Council,14019461,34,Xperience Archery,R4401-REC001,Services - Fees and Charges,04/10/2013,780.00 
http://statistics.data.gov.uk/id/local-authority-district/23UB,Cheltenham Borough Council,14019880,GLC-01012,Youth Communication Limited T/A NUS Media Local,R4014-REC101,Marketing,08/10/2013,750.00 
http://statistics.data.gov.uk/id/local-authority-district/23UB,Cheltenham Borough Council,14020369,TC/YourFuture/Oct13/fee,Antonia Cook,R4401-CUL106,Services - Fees and Charges,25/10/2013,675.00 
http://statistics.data.gov.uk/id/local-authority-district/23UB,Cheltenham Borough Council,14020371,TC/YourFuture/Oct13/travel,Antonia Cook,R4401-CUL106,Services - Fees and Charges,25/10/2013,765.00 
http://statistics.data.gov.uk/id/local-authority-district/23UB,Cheltenham Borough Council,14020571,land registration fees,H M LAND REGISTRY,R4400-FIE040,Services - Professional Fees,25/10/2013,500.00 
http://statistics.data.gov.uk/id/local-authority-district/23UB,Cheltenham Borough Council,14019816,INCOME TAX 300913,HMRC,B6122-BAL100,Short Term Creditors - Tax Deducted,04/10/2013,"10,616.22 "
http://statistics.data.gov.uk/id/local-authority-district/23UB,Cheltenham Borough Council,14019778,Jet Age Museum,Jet Age Museum,R4700-AIR101,Grants,04/10/2013,"5,000.00 "
http://statistics.data.gov.uk/id/local-authority-district/23UB,Cheltenham Borough Council,14019867,CHARITY HOLDING,Mayors Charity,B6170-BAL100,Short Term Creditors (incl RIA) - Other entities and individuals,04/10/2013,"1,260.87 "
http://statistics.data.gov.uk/id/local-authority-district/23UB,Cheltenham Borough Council,14020001,RENT REFUND -REDACTED,REDACTED,R9910-HRA900,Refund of Overpiad Rent,08/10/2013,"2,006.62 "
http://statistics.data.gov.uk/id/local-authority-district/23UB,Cheltenham Borough Council,14020556,INV-0957,MORETON IN MARSH AGRIC/HRSE SHOW,R4901-HLD120,Commission,25/10/2013,816.00 
http://statistics.data.gov.uk/id/local-authority-district/23UB,Cheltenham Borough Council,14020053,RENT REFUND -REDACTED,REDACTED,R9910-HRA900,Refund of Overpiad Rent,11/10/2013,"1,394.12 "
http://statistics.data.gov.uk/id/local-authority-district/23UB,Cheltenham Borough Council,14020000,RENT REFUND -REDACTED,REDACTED,R9910-HRA900,Refund of Overpiad Rent,08/10/2013,"5,586.04 "
http://statistics.data.gov.uk/id/local-authority-district/23UB,Cheltenham Borough Council,14020464,REDACTED,REDACTED,C1107-CAH033,Building Works,25/10/2013,"4,700.00 "
http://statistics.data.gov.uk/id/local-authority-district/23UB,Cheltenham Borough Council,14020052,REDACTED,REDACTED,C1107-CAH033,Building Works,14/10/2013,800.00 
http://statistics.data.gov.uk/id/local-authority-district/23UB,Cheltenham Borough Council,14020469,BREWERY CPK Q2 13/14,NFUMIS NO 9 ACCOUNT,R5003-CPK102,TPP - Agency Fees,25/10/2013,"8,256.16 "
http://statistics.data.gov.uk/id/local-authority-district/23UB,Cheltenham Borough Council,14020420,NT562,NICK TURNER PHOTOGRAPHY,R4318-CUL107,Photography & Promotional Materials/Design,25/10/2013,944.00 
http://statistics.data.gov.uk/id/local-authority-district/23UB,Cheltenham Borough Council,14020538,3021045,ODM srl s.r.o,R4401-CUL107,Services - Fees and Charges,25/10/2013,527.00 
http://statistics.data.gov.uk/id/local-authority-district/23UB,Cheltenham Borough Council,14020303,RENT REFUND (REDACTED),REDACTED,R9910-HRA900,Refund of Overpiad Rent,18/10/2013,"8,819.94 "
http://statistics.data.gov.uk/id/local-authority-district/23UB,Cheltenham Borough Council,14020411,4833,RRA ARCHITECTS  LTD,C1005-CAP106,Surveyors Fees,25/10/2013,"4,249.15 "
http://statistics.data.gov.uk/id/local-authority-district/23UB,Cheltenham Borough Council,10008987,,CC CAR PK PAYTHRU,B5510BAL100,Lloyds,22/10/2013,"1,594.20 "
